Workbook

Sheet Página1
A2: Planejamento Econômico Nutricional | E2: Simulação do Lucro Esperado
H3: Dias: | I3: =B13 -> 30
A4: Preço da dieta ( Kg): | B4: R$ 1.80 | E4: GMD mínimo esperado: | F4: =B6/B11 -> 0.600 | H4: Peso ini: | I4: 300
A5: Consumo diário (Kg): | B5: 3 | H5: Peso Fim: | I5: =I4+(F6*I3) -> 336
A6: Custo diário do consumo: | B6: =B5*B4 -> R$ 5.40 | E6: GMD para lucro Esperado (kg): | F6: 1.200
H7: Delta: | I7: =I5-I4 -> R$ 36.00
E8: Lucro Esperado em %: | F8: =I11/I8 -> 50% | H8: Ganho: | I8: =I7*B11 -> R$ 324.00
H9: Custo: | I9: =B6*I3 -> R$ 162.00
A10: Valor da @: | B10: R$ 270.00
A11: Valor do Kg Vivo (RC 50%): | B11: =B10/30 -> R$ 9.00 | H11: Lucro R$: | I11: =I8-I9 -> R$ 162.00
A13: Tempo entre pesagem(dias): | B13: 30
A15: .* Preencher somente os campos em verde
A17: Acompanhamento da Execução
A19: N° do brinco | B19: Peso 1 | C19: Peso 2 | D19: GMD | E19: Resultado diário | F19: Resultado Mensal
A20: 2564 | B20: 300 | C20: 358 | D20: =(C20-B20)/B13 -> 1.933 | E20: =(D20-F4)*B11 -> R$ 12.00 | F20: =E20*30 -> R$ 360.00
A21: 2565 | B21: 326 | C21: 358 | D21: =(C21-B21)/B13 -> 1.067 | E21: =(D21-F4)*B11 -> R$ 4.20 | F21: R$ 126.00
A22: 2566 | B22: 352 | C22: 358 | D22: =(C22-B22)/B13 -> 0.200 | E22: =(D22-F4)*B11 -> -R$ 3.60 | F22: -R$ 108.00
A23: 2567 | B23: 330 | C23: 358 | D23: =(C23-B23)/B13 -> 0.933 | E23: =(D23-F4)*B11 -> R$ 3.00 | F23: R$ 90.00
A24: 2568 | B24: 310 | C24: 358 | D24: =(C24-B24)/B13 -> 1.600 | E24: =(D24-F4)*B11 -> R$ 9.00 | F24: R$ 270.00
A25: 2569 | B25: 316 | C25: 358 | D25: =(C25-B25)/B13 -> 1.400 | E25: =(D25-F4)*B11 -> R$ 7.20 | F25: R$ 216.00
A26: 2570 | B26: 311 | C26: 358 | D26: =(C26-B26)/B13 -> 1.567 | E26: =(D26-F4)*B11 -> R$ 8.70 | F26: R$ 261.00
A27: 2571 | B27: 315 | C27: 358 | D27: =(C27-B27)/B13 -> 1.433 | E27: =(D27-F4)*B11 -> R$ 7.50 | F27: R$ 225.00
A28: Total e média | B28: =AVERAGE(B20:B27) -> 320 | C28: 358 | D28: 1.267 | E28: =SUM(E20:E27) -> R$ 48.00 | F28: R$ 1,440.00
